[Event "3rd Memorial Warakomska 2019"]
[Site "Suwalki"]
[Date "2019.08.07"]
[Round "3.36"]
[White "Mulet, Piotr"]
[Black "Klimkowski, Jan"]
[Result "1/2-1/2"]
[ECO "B22"]
[WhiteElo "2244"]
[BlackElo "1985"]
[Annotator "NA"]
[PlyCount "122"]
[EventDate "2019.08.05"]
[EventType "swiss"]
[EventCountry "POL"]
[SourceTitle "playchess.com"]
[Source "ChessBase"]
[SourceQuality "1"]
[TimeControl "40/5400+30:1800+30"]

1. e4 {[%emt 0:00:00]} c5 {[%emt 0:00:00]} 2. c3 {[%emt 0:00:05]} d5 {[%emt 0:00:00]} 3. exd5 {[%emt 0:00:13]} Qxd5 {[%emt 0:00:00]} 4. d4 {[%emt 0:00:04]} Nc6 {[%emt 0:00:14]} 5. Nf3 {[%emt 0:00:07]} Bf5 {[%emt 0:00:23]} 6. Be2 {[%emt 0:00:32]} cxd4 {[%emt 0:00:31]} 7. cxd4 {[%emt 0:00:07]} Bxb1 {[%emt 0:00:05]} 8. Rxb1 {[%emt 0:00:13]} e6 {[%emt 0:00:22]} 9. a3 {[%emt 0:02:23]} Nf6 {[%emt 0:02:21]} 10. O-O {[%emt 0:00:20]} Bd6 {[%emt 0:05:06]} 11. Bg5 {[%emt 0:06:48]} Ne4 {[%emt 0:01:26]} 12. Be3 {[%emt 0:00:13]} O-O {[%emt 0:03:29]} 13. Nd2 {[%emt 0:01:19]} Nxd2 {[%emt 0:05:33]} 14. Qxd2 {[%emt 0:00:08]} Rfd8 {[%emt 0:02:06]} 15. Bf3 {[%emt 0:15:13]} Qf5 {[%emt 0:03:34]} 16. Rfd1 {[%emt 0:07:47]} Rac8 {[%emt 0:14:26]} 17. Rbc1 {[%emt 0:07:45]} Be7 {[%emt 0:04:17]} 18. Bxc6 {[%emt 0:07:06]} bxc6 {[%emt 0:00:50]} 19. Qe2 {[%emt 0:00:33]} Qb5 {[%emt 0:02:53]} 20. Qc2 {[%emt 0:00:23]} Rd5 {[%emt 0:03:14]} 21. b4 {[%emt 0:05:52]} a5 {[%emt 0:04:01]} 22. bxa5 {[%emt 0:00:16]} Qxa5 {[%emt 0:00:24]} 23. a4 {[%emt 0:00:12]} Bf6 {[%emt 0:02:52]} 24. h3 {[%emt 0:00:59]} h6 {[%emt 0:00:57]} 25. Qc4 {[%emt 0:02:19]} Ra8 {[%emt 0:02:46]} 26. Qxc6 {[%emt 0:00:21]} Qxa4 {[%emt 0:00:10]} 27. Qb6 {[%emt 0:10:05]} Rad8 {[%emt 0:02:40]} 28. Ra1 {[%emt 0:00:08]} Qb5 {[%emt 0:03:48]} 29. Qxb5 {[%emt 0:00:49]} Rxb5 {[%emt 0:00:05]} 30. Rd2 {[%emt 0:00:06]} Rbd5 {[%emt 0:00:40]} 31. Rad1 {[%emt 0:00:08]} Be7 {[%emt 0:00:52]} 32. Kf1 {[%emt 0:00:22]} Bb4 {[%emt 0:00:09]} 33. Rd3 {[%emt 0:00:27]} Bc5 {[%emt 0:03:14]} 34. Ke2 {[%emt 0:00:13]} Ba7 {[%emt 0:00:02]} 35. g4 {[%emt 0:01:00]} Kh7 {[%emt 0:01:04]} 36. Kf3 {[%emt 0:03:58]} Kg6 {[%emt 0:02:03]} 37. Ke4 {[%emt 0:00:29]} f5+ {[%emt 0:02:04]} 38. gxf5+ {[%emt 0:00:46]} exf5+ {[%emt 0:01:02]} 39. Kf3 {[%emt 0:00:06]} Kh5 {[%emt 0:01:42]} 40. Ke2 {[%emt 0:06:20]} g5 {[%emt 0:00:00]} 41. f4 {[%emt 0:00:04]} Bb8 {[%emt 0:16:34]} 42. Kf3 {[%emt 0:00:35]} Bd6 {[%emt 0:00:31]} 43. Rb3 {[%emt 0:05:02]} Re8 {[%emt 0:02:34]} 44. Rg1 {[%emt 0:02:09]} Be7 {[%emt 0:03:21]} 45. Rb6 {[%emt 0:00:50]} Bd8 {[%emt 0:00:58]} 46. Rc6 {[%emt 0:01:19]} Rd7 {[%emt 0:05:04]} 47. Ra1 {[%emt 0:04:53]} gxf4 {[%emt 0:04:35]} 48. Bxf4 {[%emt 0:04:29]} Bg5 {[%emt 0:00:10]} 49. Be5 {[%emt 0:04:47]} Rb7 {[%emt 0:01:22]} 50. Rc3 {[%emt 0:00:41]} Re6 {[%emt 0:01:21]} 51. Ra8 {[%emt 0:03:38]} Rb2 {[%emt 0:02:43]} 52. Rf8 {[%emt 0:01:09]} Kg6 {[%emt 0:01:10]} 53. Rg8+ {[%emt 0:02:05]} Kh5 {[%emt 0:00:26]} 54. Rf8 {[%emt 0:00:36]} Kg6 {[%emt 0:00:15]} 55. Rd3 {[%emt 0:09:03]} Rc2 {[%emt 0:03:24]} 56. Rg8+ {[%emt 0:01:50]} Kh5 {[%emt 0:00:06]} 57. Rf8 {[%emt 0:00:04]} Kg6 {[%emt 0:00:07]} 58. Rg8+ {[%emt 0:02:39]} Kh5 {[%emt 0:00:05]} 59. Rf8 {[%emt 0:00:07]} Kg6 {[%emt 0:00:22]} 60. Bg3 Ree2 61. h4 f4 {Ke4} 1/2-1/2

[Event "3rd Memorial Warakomska 2019"]
[Site "Suwalki"]
[Date "2019.08.07"]
[Round "3.37"]
[White "Shpanko, Nadiia"]
[Black "Bommini Mounika Akshaya"]
[Result "1/2-1/2"]
[ECO "C47"]
[WhiteElo "2132"]
[BlackElo "2063"]
[Annotator "NA"]
[PlyCount "55"]
[EventDate "2019.08.05"]
[EventType "swiss"]
[EventCountry "POL"]
[SourceTitle "playchess.com"]
[Source "ChessBase"]
[SourceQuality "1"]
[TimeControl "40/5400+30:1800+30"]

1. e4 {[%emt 0:00:00]} e5 {[%emt 0:00:00]} 2. Nf3 {[%emt 0:00:00]} Nc6 {[%emt 0:00:00]} 3. Nc3 {[%emt 0:00:00]} Nf6 {[%emt 0:00:00]} 4. h3 {[%emt 0:00:00]} h6 {[%emt 0:13:50]} 5. d4 {[%emt 0:14:30]} exd4 {[%emt 0:00:09]} 6. Nxd4 {[%emt 0:00:04]} Bb4 {[%emt 0:00:18]} 7. Nxc6 {[%emt 0:00:08]} bxc6 {[%emt 0:00:08]} 8. Bd3 {[%emt 0:00:05]} d5 {[%emt 0:04:29]} 9. exd5 {[%emt 0:19:15]} cxd5 {[%emt 0:00:09]} 10. O-O {[%emt 0:00:23]} O-O {[%emt 0:00:05]} 11. Nb5 {[%emt 0:05:57]} c5 {[%emt 0:09:33]} 12. a3 {[%emt 0:09:15]} Ba5 {[%emt 0:00:11]} 13. b4 {[%emt 0:00:57]} cxb4 {[%emt 0:12:27]} 14. axb4 {[%emt 0:00:04]} Bxb4 {[%emt 0:00:16]} 15. Bb2 {[%emt 0:04:49]} a5 {[%emt 0:13:23]} 16. Bxf6 {[%emt 0:04:56]} Qxf6 {[%emt 0:16:17]} 17. Nc7 {[%emt 0:00:12]} Rb8 {[%emt 0:00:45]} 18. Nxd5 {[%emt 0:00:10]} Qd8 {[%emt 0:00:34]} 19. Nxb4 {[%emt 0:00:33]} axb4 {[%emt 0:00:29]} 20. Qf3 {[%emt 0:01:09]} Be6 {[%emt 0:05:34]} 21. Qe4 {[%emt 0:06:12]} g6 {[%emt 0:00:13]} 22. Qe3 {[%emt 0:03:51]} Kh7 {[%emt 0:01:46]} 23. Ra7 {[%emt 0:05:10]} Qb6 {[%emt 0:01:36]} 24. Qxb6 {[%emt 0:04:01]} Rxb6 {[%emt 0:00:02]} 25. Re1 {[%emt 0:00:12]} Kg7 {[%emt 0:08:16]} 26. h4 {[%emt 0:01:05]} h5 {[%emt 0:00:44]} 27. Re5 {[%emt 0:02:09]} Kf6 {[%emt 0:00:29]} 28. Re1 {[%emt 0:06:01]} 1/2-1/2

[Event "3rd Memorial Warakomska 2019"]
[Site "Suwalki"]
[Date "2019.08.07"]
[Round "3.38"]
[White "Dzhuguryan, Tygran"]
[Black "Jankowiak, Tomasz"]
[Result "1-0"]
[ECO "D10"]
[WhiteElo "2230"]
[BlackElo "2104"]
[Annotator "NA"]
[PlyCount "145"]
[EventDate "2019.08.05"]
[EventType "swiss"]
[EventCountry "POL"]
[SourceTitle "playchess.com"]
[Source "ChessBase"]
[SourceQuality "1"]
[TimeControl "40/5400+30:1800+30"]

1. d4 {[%emt 0:00:00]} d5 {[%emt 0:00:00]} 2. c4 {[%emt 0:00:00]} c6 {[%emt 0:00:00]} 3. Qc2 {[%emt 0:01:32]} Nf6 {[%emt 0:00:00]} 4. Nf3 {[%emt 0:00:32]} e6 {[%emt 0:04:04]} 5. g3 {[%emt 0:00:26]} Nbd7 {[%emt 0:02:30]} 6. Bg2 {[%emt 0:00:09]} Bd6 {[%emt 0:03:38]} 7. O-O {[%emt 0:00:42]} O-O {[%emt 0:01:16]} 8. Nbd2 {[%emt 0:00:40]} e5 {[%emt 0:11:52]} 9. cxd5 {[%emt 0:00:45]} cxd5 {[%emt 0:01:36]} 10. dxe5 {[%emt 0:00:08]} Nxe5 {[%emt 0:00:13]} 11. Nxe5 {[%emt 0:00:03]} Bxe5 {[%emt 0:00:09]} 12. Nf3 {[%emt 0:00:12]} Bd6 {[%emt 0:01:14]} 13. Be3 {[%emt 0:00:16]} Be6 {[%emt 0:08:44]} 14. Rac1 {[%emt 0:02:20]} Qd7 {[%emt 0:05:04]} 15. Bd4 {[%emt 0:03:50]} Ne4 {[%emt 0:11:26]} 16. Qb3 {[%emt 0:00:30]} a6 {[%emt 0:10:05]} 17. Qe3 {[%emt 0:17:21]} Rfe8 {[%emt 0:02:12]} 18. Ng5 {[%emt 0:07:09]} Bf5 {[%emt 0:02:15]} 19. Nxe4 {[%emt 0:00:23]} dxe4 {[%emt 0:01:46]} 20. Rfd1 {[%emt 0:02:57]} Qe6 {[%emt 0:02:06]} 21. a3 {[%emt 0:01:19]} Rac8 {[%emt 0:01:49]} 22. Rxc8 {[%emt 0:06:25]} Rxc8 {[%emt 0:00:28]} 23. Rc1 {[%emt 0:00:05]} Rxc1+ {[%emt 0:04:48]} 24. Qxc1 {[%emt 0:00:28]} f6 {[%emt 0:01:09]} 25. Qc3 {[%emt 0:02:00]} Kf7 {[%emt 0:06:47]} 26. h4 {[%emt 0:02:05]} Qd5 {[%emt 0:02:44]} 27. e3 {[%emt 0:03:21]} Bd7 {[%emt 0:02:07]} 28. Qc2 {[%emt 0:02:57]} f5 {[%emt 0:03:01]} 29. Qc3 {[%emt 0:00:16]} Bf8 {[%emt 0:00:26]} 30. Qc7 {[%emt 0:00:54]} h6 {[%emt 0:04:39]} 31. Bf1 {[%emt 0:03:42]} Qc6 {[%emt 0:01:39]} 32. Bc4+ {[%emt 0:00:25]} Kg6 {[%emt 0:01:07]} 33. h5+ {[%emt 0:00:14]} Kh7 {[%emt 0:01:55]} 34. Qxc6 {[%emt 0:00:07]} Bxc6 {[%emt 0:00:10]} 35. Bf7 {[%emt 0:00:07]} Bd7 {[%emt 0:00:59]} 36. Kf1 {[%emt 0:00:13]} b5 {[%emt 0:03:22]} 37. b4 {[%emt 0:01:40]} Be7 {[%emt 0:00:36]} 38. Ke2 {[%emt 0:00:24]} Bf6 {[%emt 0:00:31]} 39. Kd2 {[%emt 0:00:06]} Bd8 {[%emt 0:00:16]} 40. Be5 {[%emt 0:00:00]} Bb6 {[%emt 0:00:00]} 41. Kc3 {[%emt 0:02:07]} Bc8 {[%emt 0:10:13]} 42. Bd6 {[%emt 0:00:25]} Bb7 {[%emt 0:05:54]} 43. Bg6+ {[%emt 0:00:17]} Kg8 {[%emt 0:00:07]} 44. Bxf5 {[%emt 0:00:03]} Kf7 {[%emt 0:00:04]} 45. Be5 {[%emt 0:00:24]} Bd8 {[%emt 0:02:22]} 46. Bg6+ {[%emt 0:00:28]} Kg8 {[%emt 0:00:14]} 47. Kd2 {[%emt 0:03:07]} Be7 {[%emt 0:01:29]} 48. Be8 {[%emt 0:01:26]} Kf8 {[%emt 0:00:37]} 49. Bd7 {[%emt 0:01:17]} Kf7 {[%emt 0:00:53]} 50. Bf5 {[%emt 0:00:54]} Bd8 {[%emt 0:00:54]} 51. Ke2 {[%emt 0:01:22]} Be7 {[%emt 0:00:57]} 52. Bg6+ {[%emt 0:00:30]} Kf8 {[%emt 0:01:07]} 53. Kf1 {[%emt 0:00:58]} Bc6 {[%emt 0:01:52]} 54. Kg2 {[%emt 0:01:18]} Bb7 {[%emt 0:00:37]} 55. Bf5 {[%emt 0:01:23]} Kf7 {[%emt 0:00:21]} 56. Kh3 {[%emt 0:00:42]} a5 {[%emt 0:05:28]} 57. bxa5 {[%emt 0:06:16]} Bxa3 {[%emt 0:00:05]} 58. Bd7 {[%emt 0:00:11]} Bb4 {[%emt 0:01:34]} 59. Bc7 {[%emt 0:12:26]} Ba6 {[%emt 0:00:27]} 60. Bc6 {[%emt 0:00:06]} Be1 {[%emt 0:00:28]} 61. Bxe4 {[%emt 0:03:19]} Bxf2 62. Bb6 Be1 {[%emt 0:03:10]} 63. Bd3 {[%emt 0:02:34]} Bc8+ {[%emt 0:01:37]} 64. Kg2 {[%emt 0:02:40]} Bb7+ {[%emt 0:00:31]} 65. e4 {[%emt 0:00:43]} g6 {[%emt 0:00:44]} 66. Kf3 {[%emt 0:02:07]} gxh5 {[%emt 0:01:47]} 67. Bxb5 {[%emt 0:00:08]} h4 {[%emt 0:00:09]} 68. gxh4 {[%emt 0:00:08]} Bxh4 {[%emt 0:00:06]} 69. a6 {[%emt 0:00:07]} Ba8 {[%emt 0:00:43]} 70. Bc4+ {[%emt 0:00:04]} Ke8 {[%emt 0:01:09]} 71. Bd5 {[%emt 0:00:04]} Bxd5 {[%emt 0:00:29]} 72. exd5 {[%emt 0:00:01]} Kd7 {[%emt 0:00:16]} 73. a7 {[%emt 0:00:02]} 1-0

[Event "3rd Memorial Warakomska 2019"]
[Site "Suwalki"]
[Date "2019.08.07"]
[Round "3.39"]
[White "Bachor, Tomasz"]
[Black "Bukojemski, Adam"]
[Result "1-0"]
[ECO "D35"]
[WhiteElo "2022"]
[BlackElo "2225"]
[Annotator "NA"]
[PlyCount "65"]
[EventDate "2019.08.05"]
[EventType "swiss"]
[EventCountry "POL"]
[SourceTitle "playchess.com"]
[Source "ChessBase"]
[SourceQuality "1"]
[TimeControl "40/5400+30:1800+30"]

1. d4 {[%emt 0:00:00]} Nf6 {[%emt 0:00:00]} 2. c4 {[%emt 0:00:00]} d5 {[%emt 0:02:24]} 3. Nc3 {[%emt 0:04:16]} e6 {[%emt 0:01:48]} 4. cxd5 {[%emt 0:00:46]} exd5 {[%emt 0:01:47]} 5. Bg5 {[%emt 0:00:13]} c6 {[%emt 0:02:10]} 6. e3 {[%emt 0:00:31]} Nbd7 {[%emt 0:03:17]} 7. Bd3 {[%emt 0:00:39]} h6 {[%emt 0:05:37]} 8. Bh4 {[%emt 0:03:16]} Qb6 {[%emt 0:00:21]} 9. Qc2 {[%emt 0:02:50]} g5 {[%emt 0:02:58]} 10. Bg3 {[%emt 0:00:34]} Nh5 {[%emt 0:00:02]} 11. Nge2 {[%emt 0:05:52]} Nxg3 {[%emt 0:01:44]} 12. Nxg3 {[%emt 0:03:38]} Nf6 {[%emt 0:00:21]} 13. O-O {[%emt 0:02:19]} Be6 {[%emt 0:00:08]} 14. Na4 {[%emt 0:02:50]} Qc7 {[%emt 0:00:48]} 15. Nc5 {[%emt 0:11:55]} O-O-O {[%emt 0:05:37]} 16. b4 {[%emt 0:04:00]} h5 {[%emt 0:02:32]} 17. b5 {[%emt 0:05:09]} h4 {[%emt 0:04:20]} 18. Nf5 {[%emt 0:07:38]} Ng4 {[%emt 0:01:05]} 19. f4 {[%emt 0:07:45]} gxf4 {[%emt 0:06:36]} 20. exf4 {[%emt 0:07:15]} Kb8 {[%emt 0:02:57]} 21. Rf3 {[%emt 0:02:31]} cxb5 {[%emt 0:04:08]} 22. Rc1 {[%emt 0:04:08]} Bxc5 {[%emt 0:00:33]} 23. dxc5 {[%emt 0:01:17]} d4 {[%emt 0:01:02]} 24. Nd6 {[%emt 0:03:21]} Ne3 {[%emt 0:02:41]} 25. Qb2 {[%emt 0:01:30]} Rhg8 {[%emt 0:06:13]} 26. Nxb5 {[%emt 0:04:18]} Qc6 {[%emt 0:13:16]} 27. Rxe3 {[%emt 0:01:28]} dxe3 {[%emt 0:10:43]} 28. Qe5+ {[%emt 0:00:18]} Ka8 {[%emt 0:00:17]} 29. Nc7+ {[%emt 0:00:16]} Kb8 {[%emt 0:03:14]} 30. Nxe6+ {[%emt 0:02:31]} Kc8 {[%emt 0:00:29]} 31. Be4 {[%emt 0:00:20]} e2 {[%emt 0:01:37]} 32. Bxc6 {[%emt 0:01:36]} Rd1+ {[%emt 0:00:07]} 33. Kf2 {[%emt 0:00:03]} 1-0

[Event "3rd Memorial Warakomska 2019"]
[Site "Suwalki"]
[Date "2019.08.07"]
[Round "3.40"]
[White "Leskiewicz, Ignacy"]
[Black "Selbes, Tarik"]
[Result "0-1"]
[ECO "C60"]
[WhiteElo "2120"]
[BlackElo "2342"]
[Annotator "NA"]
[PlyCount "118"]
[EventDate "2019.08.05"]
[EventType "swiss"]
[EventCountry "POL"]
[SourceTitle "playchess.com"]
[Source "ChessBase"]
[SourceQuality "1"]
[TimeControl "40/5400+30:1800+30"]

1. e4 {[%emt 0:00:00]} e5 {[%emt 0:09:38]} 2. Nf3 {[%emt 0:00:00]} Nc6 {[%emt 0:00:09]} 3. Bb5 {[%emt 0:00:00]} g6 {[%emt 0:00:36]} 4. O-O Bg7 {[%emt 0:00:54]} 5. c3 {[%emt 0:08:47]} a6 {[%emt 0:00:08]} 6. Ba4 {[%emt 0:00:53]} d6 {[%emt 0:01:35]} 7. h3 {[%emt 0:03:55]} Nf6 {[%emt 0:00:51]} 8. d4 {C60: Ruy Lopez: Unusual Black 3rd moves and 3...g6} b5 {[%emt 0:00:42]} (8... Bd7 9. Re1 O-O 10. Nbd2 Nh5 11. Nf1 h6 12. Ne3 Re8 13. dxe5 dxe5 14. Bb3 Nf4 15. Nd5 Nxd5 16. Bxd5 Be6 17. Bxe6 Rxe6 18. Qb3 {½-½ (98) Ortiz Suarez,I (2611)-Matsuura,E (2486) Praia da Pipa 2014}) 9. Bb3 {[%emt 0:08:12]} O-O {[%emt 0:00:24]} 10. Bg5 $146 {[%emt 0:04:50]} ({Predecessor:} 10. Be3 Bb7 11. Nbd2 Re8 12. d5 Na5 13. Bc2 {1-0 (39) Klein,J (2175)-Junker,R (2159) Germany 2005}) 10... h6 {[%emt 0:00:17]} 11. Be3 {[%emt 0:10:44]} Bb7 {[%emt 0:00:31]} 12. Nbd2 {[%emt 0:03:24]} Re8 {[%emt 0:02:28]} 13. dxe5 {[%emt 0:32:26]} Nxe5 {[%emt 0:01:10]} 14. Nxe5 {[%emt 0:02:05]} dxe5 {[%emt 0:01:44]} 15. f3 {[%emt 0:02:34]} Nh5 {[%emt 0:01:05]} 16. Rf2 {[%emt 0:01:28]} Qf6 {[%emt 0:03:14]} 17. a4 {[%emt 0:02:40]} Red8 {[%emt 0:02:46]} 18. Qc2 {[%emt 0:01:35]} Nf4 {[%emt 0:02:05]} 19. Nf1 {[%emt 0:00:41]} h5 {[%emt 0:01:58]} 20. c4 {[%emt 0:02:08]} bxa4 {[%emt 0:02:21]} 21. Bxa4 {[%emt 0:01:41]} Bh6 $11 {[%emt 0:01:46]} 22. c5 {[%emt 0:01:12]} Bc8 {[%emt 0:05:49]} 23. Bb3 {[%emt 0:02:50]} Bd7 {[%emt 0:21:24]} 24. Bd5 {[%emt 0:03:38]} Nxd5 {[%emt 0:07:45]} 25. exd5 {[%emt 0:00:39]} Bxe3 {[%emt 0:00:35]} 26. Nxe3 {[%emt 0:00:01]} Qg5 {[%emt 0:00:16]} 27. Qe4 {[%emt 0:01:29]} Bxh3 {[%emt 0:01:38]} 28. Nc4 {[%emt 0:01:03]} Re8 {[%emt 0:03:12]} 29. d6 {[%emt 0:00:39]} Bf5 {[%emt 0:01:28]} 30. Qd5 {[%emt 0:01:20]} Qf4 {[%emt 0:03:04]} 31. Ra4 {[%emt 0:02:23]} Be6 {[%emt 0:03:45]} 32. Qe4 {[%emt 0:01:37]} Qxe4 {[%emt 0:07:19]} 33. fxe4 {[%emt 0:00:01]} cxd6 {[%emt 0:00:09]} 34. cxd6 {[%emt 0:00:53]} Red8 {[%emt 0:01:12]} 35. Rd2 {[%emt 0:00:39]} f6 {[%emt 0:01:38]} 36. Kf2 {[%emt 0:00:36]} Kf7 {[%emt 0:01:11]} 37. Ke3 {[%emt 0:00:44]} Bxc4 {[%emt 0:02:06]} 38. Rxc4 {[%emt 0:00:00]} Rd7 {[%emt 0:00:12]} 39. Rc6 {[%emt 0:00:34]} Ke6 {[%emt 0:00:21]} 40. Rd5 {[%emt 0:00:00]} Rb8 {[%emt 0:00:00]} 41. Rd2 {[%emt 0:09:12]} Rb3+ {[%emt 0:02:15]} 42. Ke2 {[%emt 0:01:15]} a5 {[%emt 0:00:43]} 43. Ra6 {[%emt 0:00:38]} Rb4 {[%emt 0:02:20]} 44. Ke3 {[%emt 0:01:43]} a4 {[%emt 0:00:19]} 45. g3 {[%emt 0:03:48]} g5 {[%emt 0:02:11]} 46. Kf3 {[%emt 0:01:06]} g4+ {[%emt 0:04:58]} 47. Ke3 {[%emt 0:00:01]} Rb3+ {[%emt 0:00:09]} 48. Kf2 {[%emt 0:00:13]} Rf3+ {[%emt 0:00:19]} 49. Kg2 {[%emt 0:00:26]} Re3 {[%emt 0:00:20]} 50. Rxa4 {[%emt 0:00:24]} Rxd6 {[%emt 0:00:06]} 51. Rc2 {[%emt 0:00:16]} Rdd3 {[%emt 0:06:06]} 52. Ra6+ {[%emt 0:02:49]} Kf7 53. Rcc6 Rxg3+ {[%emt 0:01:40]} 54. Kh2 {[%emt 0:00:55]} Rgf3 {[%emt 0:00:51]} 55. b4 {[%emt 0:00:46]} Rd2+ {[%emt 0:00:37]} 56. Kg1 {[%emt 0:00:07]} h4 {[%emt 0:00:54]} 57. Ra8 {[%emt 0:01:28]} Rd1+ {[%emt 0:00:44]} 58. Kg2 {[%emt 0:00:11]} h3+ {[%emt 0:00:13]} 59. Kh2 {[%emt 0:00:05]} Rd2+ {[%emt 0:00:09]} 0-1

[Event "3rd Memorial Warakomska 2019"]
[Site "Suwalki"]
[Date "2019.08.07"]
[Round "3.41"]
[White "Luba, Lukasz"]
[Black "Chan, Kim Yew"]
[Result "1-0"]
[ECO "A85"]
[WhiteElo "2177"]
[BlackElo "2276"]
[Annotator "ChessBase"]
[PlyCount "75"]
[EventDate "2019.08.05"]
[EventType "swiss"]
[EventCountry "POL"]
[SourceTitle "playchess.com"]
[Source "ChessBase"]
[SourceQuality "1"]
[TimeControl "40/5400+30:1800+30"]

1. d4 {[%emt 0:00:00]} f5 {[%emt 0:00:00]} 2. c4 {[%emt 0:00:08]} Nf6 {[%emt 0:00:00]} 3. Nc3 {[%emt 0:00:07]} e6 {[%emt 0:00:17]} 4. a3 {[%emt 0:00:06]} d5 {[%emt 0:00:14]} 5. c5 {[%emt 0:00:06]} b6 {[%emt 0:01:15]} 6. b4 {[%emt 0:00:21]} a5 {[%emt 0:01:08]} 7. Bf4 {[%emt 0:01:35]} c6 {[%emt 0:02:18]} 8. Nf3 {[%emt 0:03:57]} Nbd7 {[%emt 0:02:00]} 9. e3 {[%emt 0:02:15]} Be7 {[%emt 0:01:02]} 10. Bd3 {[%emt 0:13:18]} Ne4 {[%emt 0:00:04]} 11. Bxe4 {[%emt 0:02:03]} fxe4 {[%emt 0:00:27]} 12. Ne5 {[%emt 0:00:18]} Nxe5 {[%emt 0:00:44]} 13. Bxe5 {[%emt 0:00:09]} O-O {[%emt 0:01:36]} 14. Na4 {[%emt 0:18:27]} bxc5 {[%emt 0:04:44]} 15. bxc5 {[%emt 0:00:21]} Bh4 {[%emt 0:10:44]} 16. g3 {[%emt 0:07:28]} Bf6 {[%emt 0:00:20]} 17. Bd6 {[%emt 0:03:55]} Be7 {[%emt 0:03:18]} 18. Be5 {[%emt 0:02:42]} Rf3 {[%emt 0:11:46]} 19. Nb6 {[%emt 0:01:35]} Ra7 {[%emt 0:00:20]} 20. Nxc8 {[%emt 0:01:03]} Qxc8 {[%emt 0:00:03]} 21. Rb1 {[%emt 0:00:07]} Ra8 {[%emt 0:04:54]} 22. Qe2 {[%emt 0:00:58]} Qe8 {[%emt 0:03:08]} 23. Rb7 {[%emt 0:06:30]} Bf8 {[%emt 0:03:00]} 24. O-O {[%emt 0:02:35]} Qh5 {[%emt 0:12:16]} 25. Qb2 {[%emt 0:00:45]} Re8 {[%emt 0:03:09]} 26. Qb6 {[%emt 0:01:00]} Rc8 {[%emt 0:03:54]} 27. Bxg7 {[%emt 0:04:30]} Bxg7 {[%emt 0:01:35]} 28. Rxg7+ {[%emt 0:00:07]} Kxg7 {[%emt 0:00:15]} 29. Qb7+ {[%emt 0:00:05]} Rf7 {[%emt 0:03:21]} 30. Qxc8 {[%emt 0:00:08]} Qg4 {[%emt 0:00:18]} 31. Qxc6 {[%emt 0:01:31]} h5 {[%emt 0:00:00]} 32. h4 {[%emt 0:00:09]} Rf6 {[%emt 0:01:05]} 33. Qc7+ {[%emt 0:01:22]} Kh6 {[%emt 0:00:18]} 34. Qe5 {[%emt 0:00:08]} Qf3 {[%emt 0:01:30]} 35. c6 {[%emt 0:04:17]} Rf8 {[%emt 0:00:47]} 36. Qxe6+ {[%emt 0:00:07]} Kh7 {[%emt 0:00:15]} 37. c7 {[%emt 0:01:06]} Rg8 {[%emt 0:00:09]} 38. Qxg8+ 1-0

[Event "3rd Memorial Warakomska 2019"]
[Site "Suwalki"]
[Date "2019.08.07"]
[Round "3.42"]
[White "Szczurek, Krzysztof"]
[Black "Kiolbasa, Oliwia"]
[Result "0-1"]
[ECO "A45"]
[WhiteElo "2104"]
[BlackElo "2239"]
[Annotator "NA"]
[PlyCount "64"]
[EventDate "2019.08.05"]
[EventType "swiss"]
[EventCountry "POL"]
[SourceTitle "playchess.com"]
[Source "ChessBase"]
[SourceQuality "1"]
[TimeControl "40/5400+30:1800+30"]

1. d4 {[%emt 0:00:00]} Nf6 {[%emt 0:07:08]} 2. Nc3 {[%emt 0:00:00]} d5 {[%emt 0:00:57]} 3. Bf4 {[%emt 0:00:00]} c6 {[%emt 0:01:23]} 4. e3 {[%emt 0:00:04]} g6 {[%emt 0:02:52]} 5. f3 {[%emt 0:02:05]} Bg7 {[%emt 0:02:15]} 6. Qd2 {[%emt 0:01:33]} b5 {[%emt 0:04:25]} 7. g4 {[%emt 0:01:00]} a5 {[%emt 0:04:55]} 8. h4 {[%emt 0:01:14]} h5 {[%emt 0:05:22]} 9. g5 {[%emt 0:05:54]} Nfd7 {[%emt 0:01:41]} 10. O-O-O {[%emt 0:06:03]} a4 {[%emt 0:12:35]} 11. e4 {[%emt 0:07:17]} b4 {[%emt 0:03:01]} 12. Nce2 {[%emt 0:01:26]} Qb6 {[%emt 0:00:29]} 13. Qe3 {[%emt 0:02:45]} Qb7 {[%emt 0:17:15]} 14. Bg3 {[%emt 0:21:33]} Nb6 {[%emt 0:01:38]} 15. Nf4 {[%emt 0:01:15]} O-O {[%emt 0:02:14]} 16. Ngh3 {[%emt 0:02:02]} Rd8 {[%emt 0:04:38]} 17. e5 {[%emt 0:03:52]} Bf5 {[%emt 0:03:51]} 18. e6 {[%emt 0:11:26]} Nc4 {[%emt 0:00:17]} 19. Bxc4 {[%emt 0:01:12]} dxc4 {[%emt 0:00:30]} 20. exf7+ {[%emt 0:00:20]} Kxf7 {[%emt 0:04:55]} 21. Qe2 {[%emt 0:02:54]} b3 {[%emt 0:01:22]} 22. Qxc4+ {[%emt 0:00:37]} e6 {[%emt 0:00:14]} 23. cxb3 {[%emt 0:04:01]} axb3 {[%emt 0:00:11]} 24. a4 {[%emt 0:07:22]} Na6 {[%emt 0:03:30]} 25. Be1 {[%emt 0:02:21]} Nc7 {[%emt 0:01:04]} 26. Bc3 {[%emt 0:00:57]} Nd5 {[%emt 0:00:39]} 27. Nxd5 {[%emt 0:00:59]} cxd5 {[%emt 0:01:28]} 28. Qb5 {[%emt 0:01:09]} Qxb5 {[%emt 0:00:39]} 29. axb5 {[%emt 0:00:05]} e5 {[%emt 0:01:26]} 30. Kd2 {[%emt 0:04:11]} exd4 {[%emt 0:01:14]} 31. Bb4 {[%emt 0:00:17]} Ra2 {[%emt 0:00:16]} 32. Ba3 {[%emt 0:01:24]} Ra8 {[%emt 0:00:59]} 0-1